[Event "World U20-ch22"]
[Site "Belfort"]
[Date "1983.08.14"]
[Round "3"]
[White "Dlugy, Maxim"]
[Black "Adianto, Utut"]
[Result "1/2-1/2"]
[ECO "E15"]
[WhiteElo "2450"]
[BlackElo "2385"]
[Annotator "Bulletin/Primel,D"]
[PlyCount "50"]
[EventDate "1983.08.12"]
[EventType "swiss"]
[EventRounds "13"]
[EventCountry "FRA"]
[SourceTitle "EXT 2016"]
[Source "ChessBase"]
[SourceDate "2015.10.08"]
[SourceVersion "1"]
[SourceVersionDate "2015.10.08"]
[SourceQuality "1"]
[TimeControl "40/9000:16/5400:0"]

1. d4 Nf6 2. c4 e6 3. Nf3 b6 4. g3 Ba6 5. Qa4 Bb7 6. Bg2 Be7 {c5 est la grande
ligne mais c'est probablement une simple transposition} (6... c5 {Dlugy,M 
(2455)-Saeed,S (2390) 22th Wch U20 1983 (11) 1-0}) 7. O-O O-O 8. Nc3 c5 9. dxc5
(9. Rd1 {[%cal Gd1d8]}) 9... Bxc5 $146 (9... bxc5 {[%csl Gd4] L'alternative}
10. Rd1 Qb6 (10... d6 {Antoshin,V-Szabo,L Alekhine Memorial 1963 (10) 1/2}) 11.
Bf4 d6 12. Rd2 (12. Rab1 {[%csl Rb2]}) 12... Nc6 13. Bxd6 Bxd6 14. Rxd6 Qxb2
$36 {[%csl Rc4];Karpov,A (2730)-Polugaevsky,L (2610) Biel 1990 (5) 1-0}) 10.
Bf4 Nc6 11. Rad1 $32 {Les Noirs ont des difficultés à terminer le
développement et notamment pour trouver une bonne case pour la Q} a6 12. Rd2 (
12. Bd6) 12... Qc8 13. Rfd1 Na5 {[%csl Rc4]} 14. Ne5 Bxg2 15. Kxg2 Be7 16. Nxd7
(16. c5 $142 $1 Qxc5 17. Nxd7 Nxd7 18. Rxd7 Qc6+ 19. Qxc6 Nxc6 20. Bd6 {
[%csl Rb6]} Bxd6 21. R1xd6 $36 (21. R7xd6 Rfc8 22. Na4 Rab8 23. Rc1 $36)) 16...
Nxc4 {Début d'une série d'échange qui va applanir la position} 17. Nxf8 Nxd2
18. Nxh7 Nc4 19. Nxf6+ Bxf6 20. Qb3 Qc6+ 21. f3 Nxb2 22. Rc1 Nc4 23. Ne4 b5 24.
Nxf6+ gxf6 25. Qd3 e5 1/2-1/2

[Event "EU-ch 12th"]
[Site "Aix les Bains"]
[Date "2011.03.23"]
[Round "2"]
[White "Romanov, Evgeny"]
[Black "Djukic, Nikola"]
[Result "1/2-1/2"]
[ECO "E15"]
[WhiteElo "2624"]
[BlackElo "2494"]
[Annotator "Marchand,A/Primel,D"]
[PlyCount "91"]
[EventDate "2011.03.22"]
[EventType "swiss"]
[EventRounds "11"]
[EventCountry "FRA"]
[SourceTitle "CBM 142 Extra"]
[Source "ChessBase"]
[SourceDate "2011.06.27"]
[SourceVersion "1"]
[SourceVersionDate "2011.06.27"]
[SourceQuality "1"]
[TimeControl "40/5400+30:1800+30"]

1. d4 Nf6 2. c4 e6 3. Nf3 b6 4. g3 Ba6 5. Qa4 {Cette vieille idée de Grunfeld
revient un peu à la mode} (5. b3 Bb4+ (5... d5 6. cxd5 (6. Bg2 Bb4+ 7. Bd2 (7.
Nfd2 $6 {Uhlmann,W-Smyslov,V Alekhine Memorial 1956 0-1})) 6... exd5 7. Bg2 Bd6
8. Ne5 O-O (8... Qe7 9. f4 Ne4 {Krasenkow}) 9. Nc3 {Nikolic,P (2585)-Sax,G 
(2600) World Cup Reykjavik 1988 (7) 1/2})) (5. Nbd2 Bb4 (5... c5 6. e4 cxd4 7.
e5 Ng4 8. h3 Nh6 9. Bg2 Nc6 10. O-O Nf5 11. a3 Qc7 12. Re1 Be7 13. b4 Bb7 14.
Ne4 O-O 15. g4 {Goldin,A (2500)-Dautov,R (2515) Riga2 1988 0-1} (15. Bf4 $5 {
[%csl Ge5]}))) (5. Qc2) 5... Bb7 (5... c6 $143 6. Nc3 b5 {Ce gambit populaire
dans les années 70 a un peu disparu aujourd'hui mais il n'est néanmoins pas
réellement réfuté} 7. cxb5 cxb5 8. Nxb5 Qb6 9. Nc3 Bb4 10. Bg2 O-O (10... Nc6)
11. O-O Bxc3 12. bxc3 Bxe2 $132 {Chadaev,N (2580)-Iordachescu,V (2636) TUR-chT
Konya 2012 (3) 1/2}) 6. Bg2 c5 7. dxc5 Bxc5 (7... bxc5 {[%csl Gd4][%cal Gb8c6]}
8. O-O Be7 9. Nc3 O-O 10. Rd1 Qb6 {[%csl Gb4,Gd4]} 11. Bf4 d6 (11... Rd8 12.
Rab1 h6 13. Qb5 Bc6 (13... d5 $5 14. cxd5 exd5 15. Nh4 {[%csl Rf5]} Rd7 16. Nf5
Bf8 (16... d4 17. Bxb7 Rxb7 18. Qc4 Bf8 $132 {[%csl Rb2,Re2][%cal Gb8c6,Gb8d7,
Ga8e8]}))) 12. Rd2 (12. Rab1 {[%cal Gb2b4,Gb1b6]}) 12... Nc6 13. Bxd6 Bxd6 14.
Rxd6 Qxb2 $132) 8. O-O O-O 9. Nc3 Be7 {[%cal Gb8a6,Ga6c5]} 10. Rd1 Na6 {
[%cal Ga6c5] Le N va regagner sur la Q, le temps perdu par Bc5e7} 11. Be3 {
[%emt 0:01:20]} Qc8 {[%emt 0:01:22]} 12. Rac1 {[%emt 0:01:15]} Nc5 {[%emt 0:01:
21]} 13. Qc2 Nce4 14. Bd4 Nxc3 (14... Rd8 15. Qd3 Nxc3 16. Qxc3 Qc7 17. b3 Rac8
18. Qb2 Be4 19. Ne1 Bxg2 20. Nxg2 Qb7 21. Ne3 h5 22. a4 Ne8 23. Rd3 Bf6 24.
Rcd1 a6 25. Qd2 Be7 26. a5 bxa5 27. Qxa5 Nf6 28. Bxf6 Bxf6 29. Qxh5 {Karpov,A 
(2755)-Ehlvest,J (2620)/ Skelleftea 1989/CBM 014/1-0 (52)}) 15. Qxc3 {[%emt 0:
01:11]} Be4 {[%emt 0:01:15]} (15... Qc7 $11) 16. Bf1 $146 {[%emt 0:01:01][%cal
Gf3d2]} (16. Ng5 Bxg2 17. Qd3 Ne4 18. Nxe4 Bh3 19. Be5 Qc6 20. f3 Bc5+ 21. Nxc5
Qxc5+ 22. Qd4 Qxd4+ 23. Rxd4 f6 24. Bd6 Rfc8 25. g4 h5 26. Kf2 hxg4 27. fxg4 f5
28. gxf5 Bxf5 29. Rg1 Re8 30. Rh4 e5 {Sturua,Z (2580)-Gershon,A (2540)/Linares
2001/CBM 081/1-0 (64)}) (16. Bh3 $5 {[%cal Gf3d2]}) 16... d6 {[%emt 0:01:05]}
17. Qe3 (17. Nd2 Bb7 (17... Bc6 {[%cal Gc8b7]})) (17. Bh3 $5 {[%cal Gh3c8]
Aurait gagné un tempo sur la partie en évitant de jouer ensuite Bf1 avant de
chasser le Be4 par Nd2} Qb7 18. Qe3 Rac8 19. b4 Rfe8 20. Nd2 {[%cal Gd2e4]})
17... Qb7 $132 {[%csl Gb7,Ge4]} 18. b4 Rac8 {Les pièces Noires sont maintenant
bien coordonnées} (18... e5 19. Bb2 a5 20. a3 Ng4 21. Qb3 axb4 22. axb4 $11)
19. Nd2 {[%emt 0:00:50]} Ra8 {[%emt 0:00:45] Une nouvelle erreur
d'enregistrement des plateaux DGT et bien évidemment ce coup débile Ra8 n'a
pas été joué. Il y a en fait 02 coups de trop dans le pgn par rapport а la
feuille de partie et les Noirs ont joué directement 19. Bf5. La suite de la
partie est correctement sauvegardé.} (19... Bf5 20. Bg2 Qd7) 20. Nf3 Rac8 21.
Nd2 {[%emt 0:00:45]} Bf5 {[%emt 0:00:36]} 22. Bg2 Qd7 23. Qb3 e5 24. Be3 Bh3
25. Bg5 {[%emt 0:00:20]} Bxg2 {[%emt 0:00:20]} 26. Kxg2 d5 27. Bxf6 dxc4 {
[%emt 0:00:05]} 28. Nxc4 Qc6+ 29. f3 Qxf6 30. Ne3 Rxc1 31. Rxc1 {[%emt 0:00:13]
} Qh6 {[%emt 0:00:01]} 32. Rc4 (32. Rc7 $14) 32... Qe6 33. Qc2 Bg5 34. Rc6 Qd7
35. Nf5 g6 36. h4 Qxf5 37. Qxf5 gxf5 38. hxg5 Rd8 39. Kf2 Rd2 40. a3 Ra2 41.
Rc3 f4 42. gxf4 exf4 43. Rc4 Rxa3 44. Rxf4 Kg7 45. Rd4 h6 46. gxh6+ {La partie
n'a duré que 44 coups après l'erreur d'enregistrement du 19ème coup} 1/2-1/2

[Event "Nalchik FIDE GP (Women)"]
[Site "Nalchik"]
[Date "2010.04.29"]
[Round "4"]
[White "Zhao, Xue"]
[Black "Mkrtchian, Lilit"]
[Result "0-1"]
[ECO "E15"]
[WhiteElo "2490"]
[BlackElo "2503"]
[Annotator "Mikhalchishin,A"]
[PlyCount "62"]
[EventDate "2010.04.26"]
[EventType "tourn"]
[EventRounds "11"]
[EventCountry "RUS"]
[EventCategory "10"]
[SourceTitle "CBM 136"]
[Source "ChessBase"]
[SourceDate "2010.05.18"]
[SourceVersion "1"]
[SourceVersionDate "2010.05.18"]
[SourceQuality "1"]
[TimeControl "5400"]

1. d4 Nf6 2. c4 e6 3. Nf3 b6 4. g3 Ba6 5. b3 b5 6. cxb5 Bxb5 7. Bg2 ({Another
option is to avoid the sharp line} 7. Nc3 Bc6 8. Bg2 Bb4 9. Bd2 Qe7 10. O-O O-O
11. Qc2 a5 12. Rfe1 Bxf3 13. Bxf3 d5 14. Na4 Bd6 15. Bf4 Nbd7 16. Bxd6 cxd6 17.
Rac1 Rfb8 18. Qc6 Qf8 19. e3 Rc8 20. Qb5 Qd8 21. Qd3 h5 22. h4 g6 {with good
chances to equalise, Grabarczyk,M-Beliavsky,A ,Warsaw 2002}) 7... Bb4+ ({
Here the great GURU of this line IGM Aleksandr Beliavsky tried successfully
other ideas} 7... d5 8. O-O Nbd7 9. Nc3 $146 (9. Ba3 {- 69/(469)}) 9... Ba6 10.
Ne5 ({The other option is not so strong:} 10. Re1 Bb4 11. Bd2 O-O 12. a3 Be7
13. b4 Bb7 14. Qc2 a5 15. Na4 axb4 16. Bxb4 Ra7 17. Nb2 Bd6 18. Nd3 Qa8 19.
Rab1 Bc6 20. Nfe5 Ba4 21. Qd2 Rc8 22. Rec1 Bxb4 23. axb4 Bb5 24. Bf3 Ne4 25.
Qf4 Nxe5 26. Nxe5 Nd6 27. Qd2 Qb7 28. Qc3 Ra6 {Abramovic,B-Beliavsky,A,Nova
Gorica 2000. with very serious counterplay.}) 10... Bd6 11. Nc6 Qc8 12. a3 $1
O-O (12... Qb7 13. Na5 Qb6 14. b4 $16) 13. Bg5 Qe8 14. Qd2 Nb6 (14... h6 $5 15.
Bf4 Nh5 $5) 15. Na5 c5 16. dxc5 Bxc5 17. Bxf6 gxf6 18. Rfc1 (18. Rfe1 $5) 18...
Rc8 19. e4 $6 ({A better chance to keep the opening initiative was} 19. b4 Be7
20. e4 Nc4 21. Nxc4 dxc4 22. Qh6 Kh8 (22... Qd7 23. Nd5 exd5 24. Bh3 $16) 23.
Rd1 (23. e5 fxe5 24. Be4 f5 25. Qxe6 Rf6 26. Qxe5 fxe4 27. Nd5 Qf7 28. Qxe7
Qxe7 29. Nxe7 Rd8 30. Rd1 Rd3 $36) 23... Rg8 (23... Rc7 24. e5 fxe5 25. Be4 f5
26. Qxe6 Rf6 27. Qxe5 $16 {צc7}) 24. e5 fxe5 25. Qe3 $16) 19... d4 20. Nd1 d3
21. e5 Bd4 22. Rxc8 Qxc8 23. Rc1 Qd7 24. Bc6 (24. Nc6 Rc8 $1) 24... Qe7 {
Beliavsky,A-Topalov,V ,Madrid 1997. with unclear play.}) (7... c5 8. O-O ({
A very interesting move which seriously needs to be tried out is} 8. dxc5 Bxc5
9. Nd4 Bxd4 10. Qxd4 Bc6 11. e4 Qb6 12. Bb2 $6 ({White is better after
correctly placing the bishop} 12. Be3 $1 Nxe4 $140 13. Qxg7) 12... Nxe4 (12...
Qxd4 13. Bxd4 Nxe4 14. Bxg7 Rg8 15. Bb2 $14) 13. Qxb6 axb6 14. Bxg7 Rg8 15. Bb2
Nc5 16. O-O Bxg2 17. Kxg2 Nc6 18. Nd2 Rg5 19. Nc4 Ra6 20. Rfd1 Ke7 21. Bc1 Rd5
$15 {Beliavsky,A-Novikov,I/Lviv 1984.}) 8... Bc6 9. Ba3 Na6 10. Nbd2 Be7 (10...
Rc8) 11. Rc1 (11. dxc5) 11... cxd4 12. Bxe7 Qxe7 13. Nc4 O-O 14. Qxd4 Bxf3 15.
Bxf3 d5 16. Ne5 $14 {Smyslov,V-Beliavsky,A/Tilburg 1984}) 8. Bd2 a5 9. Bxb4 (9.
O-O {It is possible to try to obtain a positional advantage with another idea}
O-O 10. a3 Bxd2 (10... Be7) 11. Nfxd2 $1 $146 (11. Qxd2 d6 12. Nc3 Ba6 13. b4
axb4 14. axb4 Bb7 $11) 11... Nd5 (11... Bc6 $142 12. e4 d5 13. e5 Nfd7 14. Nc3
Bb7 15. b4 $14) 12. Bxd5 $1 exd5 13. Nc3 Bc6 14. b4 Bb7 15. Nb3 axb4 16. axb4
d6 17. Na5 Qc8 18. Qb3 $16 {Beliavsky,A -Torre,E ,Yerevan (ol) 1996}) 9... axb4
10. Qd2 {Going for the pawn!} Qe7 ({Another way of sacrificing the pawn
promises less:} 10... Nd5 11. e4 Nb6 12. Qxb4 Ba6 13. Nbd2 Nc6 14. Qc5 Ne7 15.
Bf1 Bb7 16. Bg2 Ba6 17. Bf1 Bb7 18. Bd3 O-O 19. O-O f5 20. Qc2 fxe4 21. Bxe4
Bxe4 22. Qxe4 {L'Ami,E -Timman,J ,Amsterdam , 2006. does not promise full
compensation to Black.}) (10... Na6 11. Qg5 c5 12. Qxg7 Rg8 13. Qh6 $16) (10...
c5 11. dxc5 Nc6 12. Nd4 Nxd4 13. Qxd4 Rb8 14. a4 $16) 11. Qg5 d5 ({Another way
to obtain compensation is the direct counterplay in the centre:} 11... c5 12.
Qxg7 Rg8 13. Qh6 c4 (13... Nc6 {is no worse:} 14. dxc5 $1 Qxc5 15. O-O Ng4 (
15... Rg6 16. Qd2 Ne4 17. Qb2 {/\ a4+/-}) ({but much stronger is} 15... Ke7 16.
Nbd2 Qb6 17. Nc4 Bxc4 18. bxc4 Ra3 19. e3 Rg6 20. Qh3 Qa6 21. Rab1 Qxc4 22. Nd2
Qc2 23. Bxc6 Qxd2 24. Rfd1 Qc3 25. Rbc1 Qb2 26. Rb1 Qxa2 27. Qh4 Qxb1 28. Rxb1
Rg4 29. Qh3 dxc6 30. Qf1 Nd5 31. Qd1 Rc4 {Vernay,C -Postny,E/Mulhouse 2010.
with serious compensation for the queen.}) 16. Qd2 Nge5 17. a4 $1 bxa3 (17...
Ba6 18. Ra2 $16) 18. b4 Nxf3+ 19. Bxf3 Qe7 20. Nxa3 $16) 14. bxc4 Bxc4 15. Qd2
Bd5 16. Qb2 Nc6 17. O-O Kf8 18. Nbd2 Ne4 (18... Kg7 19. Rfe1 Ne4 20. Nxe4 Bxe4
21. d5+ $18) 19. Nxe4 Bxe4 20. Rfc1 {Ilincic,Z -Knezevic,B,Jugoslavija (ch)
1998. and White has a better position.}) (11... Bc6 12. Qxg7 Rg8 13. Qh6 Bd5
14. Nbd2 $16) 12. Qxg7 Rg8 13. Qh6 c5 ({Another idea should be checked out in
praxis:} 13... Nbd7 $5 $146 14. Qc1 c5 15. Qb2 Ne4 16. O-O Qf6 17. a4 Ba6 18.
Ra2 Rc8 19. Rc1 Ke7 20. dxc5 Ndxc5 21. Qd4 $14 {Avrukh,B-Jenni,F ,Hersonissos
2007}) 14. Qd2 ({The exchange in the centre was not logical:} 14. dxc5 Qxc5 15.
O-O Ke7 16. Rc1 Qxf2+ 17. Kxf2 Ng4+ 18. Ke1 Nxh6 19. a4 bxa3 20. Nxa3 Bd7 21.
Ne5 Ng4 22. Nxg4 Rxg4 23. Nc2 Rxa1 24. Rxa1 Nc6 25. Kd2 f5 26. Ra8 Rg6 {
Stokke,K-Malakhatko,V ,Gjovik, 2009. Just Black can have slight chances in
this endgame.}) ({, but} 14. a4 {looks to keep an advantage.}) 14... Nc6 15. a4
Ba6 (15... bxa3 16. Rxa3 Rb8 17. O-O {led to a better position for White.}) 16.
Ra2 $6 ({It was better not to allow the c5-pawn to move forward} 16. dxc5 Qxc5
17. Ra2 Ne4 18. Qe3 Qxe3 19. fxe3 Rc8 {with an unclear position, as the white
pawn is not a so important factor in the game.}) 16... c4 17. bxc4 Bxc4 18. Rb2
Rxa4 {Black is certainly better, but one problem - the king in the centre -
does not favour him too much.} 19. O-O Qd6 20. Rc1 Ke7 (20... b3 {allows White
to develop the bad knight.} 21. Nc3 Ra7 {but on other hand stopped all other
pieces.}) 21. Ne5 $1 {A nice opportunity to open up the king.} Nxe5 22. dxe5
Qxe5 23. Rxb4 Rxb4 ({The slightly more active} 23... Ra2 {was possible:} 24.
Rb7+ Nd7 25. Qb4+ Qd6) 24. Qxb4+ Qd6 25. Qd2 ({The endgame has to be equal,
but with a slight black initiative.} 25. Qxd6+ Kxd6 26. e3 Rb8 27. Nd2 Bd3 28.
Rc3 Bf5) 25... Rb8 26. Nc3 Qe5 {Black is slightly more centralised, but the
king in the centre will not allow much activity.} 27. e3 Rb3 28. Qc2 (28. Na4 {
was interesting.}) 28... Qb8 29. e4 (29. Ne4 Nxe4 30. Bxe4 {was the simplest
way to draw.}) 29... Rb2 30. Qa4 Qb6 31. Nd1 $4 ({It was necessary to play a
preliminary check} 31. Qa3+ Kd7 32. Nd1) 31... Ra2 $1 {The queen is trapped in
the most unexpected place.} 0-1